Cogmind - Beta 16.1 @@@ ROGUE MODE // 2026.04.25 @ 08:11:44 Player: Lyft Result: Destroyed by S-10 Pest with Light Assault Rifle Performance ------------- Evolutions (0) 0 Regions Visited (1) 200 Robots Destroyed (15) 75 Value Destroyed (362) 362 Prototype IDs (0) 0 Alien Tech Used (0) 0 Bonus (0) 0 TOTAL SCORE: 637 Bonus ------- None Cogmind --------- Core Integrity 0/250 Matter 295/300 Energy 100/100 System Corruption 2% Temperature Cool (0) Movement Core (100) Ox1 Location -10/Materials Parts ------- > --- POWER (1) -------- (None) > --- PROPULSION (2) --- (None) > --- UTILITY (2) ------ Small Storage Unit > --- WEAPON (2) ------- Light Assault Rifle > --- INVENTORY (8) ---- Ion Engine Light Treads Compact Wheel Hacking Suite Medium Laser Small Laser Mining Laser Peak State ------------ > --- POWER ------------ Light Ion Engine > --- PROPULSION ------- Light Treads Compact Wheel > --- UTILITY ---------- Small Storage Unit Seismic Detector > --- WEAPON ----------- Medium Laser Light Assault Rifle > --- INVENTORY -------- Ion Engine Light Treads Compact Wheel Small Laser Mining Laser [Rating: 7] Favorites ----------- Power Light Ion Engine Engine Light Ion Engine Propulsion Compact Wheel Treads Light Treads Leg Aluminum Leg Wheel Compact Wheel Utility Small Storage Unit Device Seismic Detector Storage Small Storage Unit Weapon Light Assault Rifle Energy Gun Medium Laser Ballistic Gun Light Assault Rifle Build | -11 -10 ------- Run | Yrd Mat Slots Evolved . | . . Power . | . . Propulsion . | . . Utility . | . . Weapon . | . . Parts Attached 3 | 3 . Power . | . . Engine . | . . Core . | . . Reactor . | . . Propulsion 2 | 2 . Treads 1 | 1 . Leg . | . . Wheel 1 | 1 . Hover . | . . Flight . | . . Utility 1 | 1 . Device 1 | 1 . Storage . | . . Processor . | . . Hackware . | . . Protection . | . . Artifact . | . . Weapon . | . . Energy Gun . | . . Energy Cannon . | . . Ballistic Gun . | . . Ballistic Cannon . | . . Launcher . | . . Special Weapon . | . . Impact Weapon . | . . Slashing Weapon . | . . Piercing Weapon . | . . Special Melee Weapon . | . . Unidentified Prototypes . | . . Parts Lost 5 | . 5 Power 1 | . 1 Propulsion 2 | . 2 Utility 1 | . 1 Weapon 1 | . 1 Highest Loss Streak 4 | . 4 To Critical Strikes . | . . Average Backups 6 | 4 6 Power 1 | 1 1 Propulsion 2 | 2 2 Utility . | . . Weapon 2 | 1 2 Tool/Special . | . . Unused Backups 3 | . 3 Power . | . . Propulsion . | . . Utility 1 | . 1 Weapon 2 | . 2 Tool/Special . | . . Average Slot Usage (%) 53 | . 53 Engine 1 | . 1 Treads 5 | . 5 Wheel 6 | . 6 Device 5 | . 5 Storage 14 | . 14 Energy Gun 6 | . 6 Ballistic Gun 14 | . 14 Peak Build Rating 7 | 7 7 Average Rating 4 | 6 3 On Entrance 6 | 6 7 Avg Prop Armor Cover (%) 15 | 14 15 Naked Turns . | . . Heaviest Build 12 | 12 12 Greatest Support 16 | 16 16 Greatest Overweight (x) 1 | . 1 Average Overweight (x) . | . . Largest Inventory Capacity 8 | 8 8 Average Capacity 8 | 8 8 Most Carried 7 | 6 7 Average Carried 6 | 4 6 Final Capacity 8 | 8 8 Final Carried 7 | 5 7 Class Distribution -------------------- 100% | Mutant Dominant Class ---------------- Mutant | -10/Materials Resources | -11 -10 ----------- Run | Yrd Mat Matter Collected 294 | 250 44 Remotely . | . . Salvage Created 557 | 126 431 Parts 32 | 7 25 Haulers Intercepted 1 | . 1 Recyclers Shooed 1 | 1 . Parts Field Recycled . | . . Retrieved Matter . | . . Parts Self-Destructed . | . . Prevented . | . . Parts Restored . | . . Kills | -11 -10 ------- Run | Yrd Mat Combat Hostiles Destroyed 9 | . 9 Guns 9 | . 9 Classes Destroyed 7 | 2 5 Tunneler 2 | 2 . Hauler 1 | . 1 Recycler 1 | 1 . Operator 1 | . 1 Watcher 1 | . 1 Swarmer 1 | . 1 Grunt 8 | . 8 Best Kill Streak 3 | 2 3 Combat Bots Only 2 | . 2 Max Kills in Single Turn 1 | 1 1 Gunslinging . | . . Exploded . | . . Melee . | . . Uniques/NPCs Destroyed . | . . Combat | -11 -10 -------- Run | Yrd Mat Hostile Shots Fired 75 | . 75 Missed 16 | . 16 Hits 59 | . 59 Projectile 59 | . 59 Damage Taken 765 | . 765 Core 250 | . 250 Absorbed by Shields . | . . Core Remaining (%) 100 | 100 . Volleys Fired 88 | 20 68 Largest 2 | 2 2 Hottest 70 | 70 70 Shots Fired 158 | 40 118 Gun 158 | 40 118 Cannon . | . . Launcher . | . . Special . | . . Kinetic 88 | 20 68 Thermal 70 | 20 50 Explosive . | . . Electromagnetic . | . . Robot Hit Streak 11 | 5 11 Robot Miss Streak 4 | 1 4 Penetration Max . | . . Secondary Targets 3 | . 3 Max Gunslinging Chain 1 | . 1 Shots Hit Robots 86 | 13 73 Core Hits 33 | 5 28 Critical Kills . | . . Critical Parts Destroyed 1 | . 1 Critical Strikes 2 | . 2 Burn 1 | . 1 Destroy 1 | . 1 Melee Attacks . | . . Impact . | . . Slashing . | . . Piercing . | . . Sneak Attacks . | . . Combat Hostiles . | . . Follow-up Attacks . | . . Damage Inflicted 884 | 129 755 Guns 876 | 129 747 Cannons . | . . Explosions . | . . Melee . | . . Ramming 8 | . 8 Kinetic 362 | 53 309 Thermal 514 | 76 438 Explosive . | . . Electromagnetic . | . . Impact . | . . Slashing . | . . Piercing . | . . Highest Corruption 2 | . 2 Average Corruption 1 | . 1 Corruption Purged . | . . Corruption Blocked . | . . Effects 1 | . 1 Message Errors 1 | . 1 Overload Shots . | . . Overflow Damage . | . . Projectiles . | . . Explosions . | . . Melee . | . . Knockbacks 1 | . 1 Impact 1 | . 1 Kinetic . | . . Secondary . | . . Self-Inflicted Damage 4 | . 4 Shots . | . . Rammed 1 | . 1 Targets Rammed 1 | . 1 Kicked . | . . Crushed . | . . Highest Temperature 257 | 170 257 Average Temperature 85 | 70 92 Received Heat Transfer 348 | . 348 Siege Activations . | . . Martial Activations . | . . Shielding Activations . | . . Robots Disrupted . | . . Combat Hostiles . | . . Robots Corrupted . | . . Combat Hostiles . | . . Parts Fried . | . . Impact Corruptions . | . . Robots Melted . | . . Combat Hostiles . | . . Parts Melted 3 | . 3 Heat Transferred 1591 | 222 1369 Parts Sabotaged . | . . Parts Stolen . | . . Parts Stripped . | . . Power Chain Reactions . | . . Alert | -11 -10 ------- Run | Yrd Mat Maximum Alert Level . | . . Low Security (%) 100 | 100 100 Level 1 . | . . Level 2 . | . . Level 3 . | . . Level 4 . | . . Level 5 . | . . High Security . | . . Max Security . | . . Peak Influence 70 | 5 70 Initial . | . . Average 16 | . 20 Influence Increases 254 | 15 239 Destroy 0b10 Robot/C 180 | . 180 Destroy 0b10 Robot/NC 30 | 15 15 Destroy Leader 44 | . 44 Influence Decreases 232 | 15 217 Time Decay 182 | 15 167 Lost Part 50 | . 50 Squads Dispatched 2 | . 2 Investigation 1 | . 1 Extermination . | . . Reinforcement 1 | . 1 Assault . | . . Garrison . | . . Intercept . | . . Searches Triggered . | . . Construction Impeded . | . . Haulers Reinforced . | . . Active Scanning Responses . | . . Cargo Convoy Interrupts . | . . Stealth | -11 -10 --------- Run | Yrd Mat Distress Signals 1 | . 1 Communications Jammed . | . . Distress Signals . | . . Times Spotted 19 | . 19 Peak Tracking Total 4 | . 4 Tactical Retreats . | . . Traps | -11 -10 ------- Run | Yrd Mat Traps Triggered 4 | . 4 Indirectly . | . . Trap Hack Attempts . | . . Triggered . | . . Disarmed . | . . Reprogrammed . | . . Reused . | . . Traps Extracted . | . . Installed . | . . Triggered . | . . Machines | -11 -10 ---------- Run | Yrd Mat Machines Disabled . | . . Max in Single Turn . | . . Machines Repaired . | . . Machines Dismantled . | . . Machines Sabotaged . | . . Overloaded Fab Kills . | . . Hacking | -11 -10 --------- Run | Yrd Mat Machines Accessed 1 | . 1 Terminals 1 | . 1 Fabricators . | . . Repair Stations . | . . Recycling Units . | . . Scanalyzers . | . . Garrison Access . | . . Total Hacks 2 | . 2 Successful 1 | . 1 Failed 1 | . 1 Catastrophic . | . . Database Lockouts . | . . Manual 2 | . 2 Terminals 2 | . 2 Fabricators . | . . Repair Stations . | . . Recycling Units . | . . Scanalyzers . | . . Garrison Access . | . . Terminal Hacks . | . . Fabricator Hacks . | . . Repair Station Hacks . | . . Recycling Unit Hacks . | . . Scanalyzer . | . . Garrison Access Hacks . | . . Unauthorized Hacks 1 | . 1 Terminals 1 | . 1 Assimilate 1 | . 1 Fabricators . | . . Repair Stations . | . . Recycling Units . | . . Scanalyzers . | . . Garrison Access . | . . Data Cores Recovered . | . . Used . | . . Hacking Detections 1 | . 1 Full Trace Events . | . . Feedback Events . | . . Feedback Blocked . | . . Robot Schematics Acquired . | . . Robots Built . | . . Authchips . | . . Time . | . . Total Robot Build Rating . | . . Part Schematics Acquired . | . . Parts Built . | . . Authchips . | . . Time . | . . Total Part Build Rating . | . . Part Studies Acquired . | . . Parts Repaired . | . . Time . | . . Parts Recycled . | . . Recycled Matter . | . . Retrieved Matter . | . . Retrieved Components . | . . Parts Scanalyzed . | . . Part Schematics Acquired . | . . Parts Damaged . | . . Bothacking | -11 -10 ------------ Run | Yrd Mat Used RIF Installer . | . . Robots Hacked . | . . Non-combat . | . . Combat . | . . Robot Hacks Applied . | . . Relay Couplers Released . | . . Fabnet Peak Effective % . | . . Robots Rewired . | . . Allies Hacked . | . . Hacks Repelled . | . . Allies | -11 -10 -------- Run | Yrd Mat Total Allies . | . . Largest Group . | . . Highest-Rated Group . | . . Highest-Rated Ally . | . . Total Orders . | . . Ally Attacks . | . . Total Damage . | . . Kills . | . . Allies Corrupted . | . . Allies Melted . | . . Intel | -11 -10 ------- Run | Yrd Mat Active Infowar (turns) 286 | 24 262 Seismic 286 | 24 262 Robot Analysis Total . | . . Derelict Logs Recovered . | . . Drone Launches . | . . Drone Recoveries . | . . Exploration | -11 -10 ------------- Run | Yrd Mat Turns Passed 776 | 134 642 Spaces Moved 540 | 73 467 Core 337 | . 337 Treads . | . . Legs . | . . Wheels 203 | 73 130 Hover . | . . Flight . | . . Fastest Speed 100 | 100 100 Average Speed 100 | 100 100 Slowest Speed 100 | 100 100 Overloaded Moves . | . . Propulsion Burnouts . | . . Robots Hopped . | . . Potential Cave-ins . | . . Cave-ins Triggered . | . . Exploration Rate (%) 38 | 3 73 Regions Visited 1 Branch Regions . Pre-discovered Areas . | . . Known Exits Taken . | . . Unknown Exits Taken 1 | 1 . Scrap Searched . | . . Spaces Dug . | . . Terrain Destroyed . | . . Melee . | . . Projectile . | . . AOE . | . . Terrain Rammed . | . . Walls Destroyed . | . . Machines Disabled . | . . Actions | -11 -10 --------- Run | Yrd Mat Total 636 | 98 538 Wait . | . . Move 539 | 72 467 Hop . | . . Pick Up 3 | 1 2 Fast Attach 1 | 1 . Attach 2 | 2 . Detach . | . . Swap . | . . Drop 2 | 2 . Fire 88 | 20 68 Melee . | . . Ram 1 | . 1 Kick . | . . Crush . | . . Escape Stasis . | . . Rewire . | . . Trap . | . . Miscellaneous . | . . Route ------- -11/Scrapyard -10/Materials (discovered 3 exits: [*Mat x2] / [*Min]) History --------- Turn | Location | Event 10 | -11/Scrapyard | Discovered new exit (range 3) 135 | -11/Scrapyard | Entered Materials 257 | -10/Materials | Discovered new exit (range 8) 307 | -10/Materials | Build established: Mutant 383 | -10/Materials | Core integrity fell below 50% 438 | -10/Materials | Lost 4 parts (2n1u1w) 504 | -10/Materials | Discovered new exit (range 12) 568 | -10/Materials | Discovered new exit (range 12) 625 | -10/Materials | Core integrity fell below 20% 777 | -10/Materials | Destroyed by S-10 Pest with Light Assault Rifle Last Messages --------------- the area. 00624_ Triggered EMP Trap. 00624_ A bubble of electromagnetic force engulfs the area. 00647_ Triggered EMP Trap. 00647_ A bubble of electromagnetic force engulfs the area. 00670_ IMGK=3BW8WP9ELPRXJX ,Z 00698_ Triggered Alarm Trap. 00698_ An alarm sounds. 00698_ ALERT: Alarm triggered, dispatching investigation squad. 00701_ Slammed into U-05 Engineer. 00701_ U-05 Engineer knocked back. 00714_ W-16 Scout suffers critical hit (Destroy). 00714_ Destroyed Hover Unit. 00735_ Acquired 4 matter. 00772_ S-10 Pest destroyed. 00774_ K-01 Serf collects debris. Map ----- +----------------------------------------------------+ | "" """"" """"" #?? #???????? | | "" """"" """"" #####???? #???????? | | "" """"" """"" #??????????#???????? | | "" """"" """"" #??????????????????? | | "" """"" """"" #??????????????????? | | "" """"" """"" % #??????????????????? | | "" """"" %"%"" #??????????????????? | | % % #??????????????????? | | #??????????????????? | | % % #??????????????????? | | ####/#####T### ##??????????????????? | | + ###?# #???????????????????? | | ### "" """ #???# % #???????????????????? | | ??# "T """ #???# #???????????????????? | | ??# "" """ #???# #???????????????????? | | ??# #???# #???????????????????? | | #?# #???# #???????????????????? | | #?# || #???# #???????????????????? | | #?# || #???# #???????????????????? | | #?# #??## %##??????????????????? | | #?##########??# ########???????????? | | #?????????????# #???????????? | | #?????????????# < #???????????? | | #?????????????# #???????????? | | #?????????????# #####u #???????????? | | #??????????######+#######@ #???????????? | | #??????????# #sk#???????????? | | #??????????# """" ! =# #???????????? | | #??????????#! """" # %#???????????? | | #??????????# """" "T" # [#???????????? | | #??????????#% """ # s#???????????? | | #??????????############## #???????????? | | #??????????????????????? #???????????? | | #??????????????????????? #???????????? | | ???????????????????????? #???????????? | | ???????????????????????? ???????????? | | ????????????????????????" #???????????? | | ????????????????????????" #???????????? | | ????????????????????????? ????????????? | | ????????????????????????? ????????????? | | ????????????????????????? ????????????? | | ???????????????????????????????????????? | | ???????????????????????????????????????? | | ???????????????????????????????????????? | | ???????????????????????????????????????? | | ???????????????????????????????????????? | | ???????????????????????????????????????? | | ???????????????????????????????????????? | | ???????????????????????????????????????? | | ???????????????????????????????????????? | +----------------------------------------------------+ Best States ------------- Heat Dissipation 25 Energy Generation 10 Energy Capacity 125 Matter Stores 300 Matter Capacity 300 Sight Range 16 Terrain Scan Density 10 Evasion (%) 40 Recoil Reduction 1 Item Schematics ----------------- None Robot Schematics ------------------ None Fabricated ------------ Nothing Repaired ---------- Nothing Studied --------- None Alien Tech Used ----------------- None Achievements -------------- None Challenges ------------ None Game ------ Seed AerolevWeaponGuard Manual? 0 Play Time 00:06:45 Cumulative 92.2 hours Start 2026.04.25 @ 08:08:01 End 2026.04.25 @ 08:11:44 Sessions 1 Manual Loads 0 Difficulty Rogue Special Mode None Game No. 78 Rogue 68 Adventurer 9 Explorer 1 Win Type - Total 1 Types 1/0/0/0/0/0/0/0/0/0 Lore% 45 Gallery% 41 Achievement% 33 Wizard Run 0 Options --------- Layout 2 ASCII 0 Keyboard 0 Movement Mouse Keybinds 0 Fullscreen 1 Font 32/Terminus Map View 50x44 Zoom Use 0% Tactical HUD 1 Map Filters NONE Filters NONE Steam 1 RUN: c2bc7a19-a80d-481b-bd70-8b79b3470dd3